[Event "New York Spring IM-D 2022"]
[Site "New York"]
[Date "2022.04.15"]
[Round "1.1"]
[White "Savanovic, Aleksandar"]
[Black "Wang, Eigen"]
[Result "0-1"]
[ECO "C11"]
[WhiteElo "2391"]
[BlackElo "2242"]
[Annotator "TA"]
[PlyCount "56"]
[EventDate "2022.04.14"]
[EventType "tourn"]
[EventCountry "USA"]
[SourceTitle "playchess.com"]
[Source "ChessBase"]
[SourceQuality "1"]
[TimeControl "5400+30"]

{[%evp 18,56,24,19,22,14,39,34,43,0,26,39,39,35,16,16,18,25,16,0,-15,-8,-24,-263,-262,-29987,-511,-490,-299,-198,-87,-29988,-1266,-1413,-1404,-29977,-29975,-29958,-6533,-5722,-1427]} 1. e4 {[%emt 0:00:04]} e6 {[%emt 0:00:06]} 2. d4 {[%emt 0:00:09]} d5 {[%emt 0:00:10]} 3. Nc3 {[%emt 0:00:05]} Nf6 {[%emt 0:00:08]} 4. e5 {[%emt 0:00:54]} Nfd7 {[%emt 0:00:06]} 5. f4 {[%emt 0:00:11]} c5 {[%emt 0:00:06]} 6. Nf3 {[%emt 0:00:15]} Nc6 {[%emt 0:00:06]} 7. Be3 {[%emt 0:00:18]} cxd4 {[%emt 0:00:08]} 8. Nxd4 {[%emt 0:00:06]} Bc5 {[%emt 0:00:11]} 9. Qd2 {[%emt 0:01:00]} O-O {[%emt 0:00:19]} 10. Be2 {[%emt 0:02:56]} Qe7 {[%emt 0:13:13][%cal Od7e5] C11: French: Classical System: 4 e5 and 4 Bg5 dxe4.} 11. O-O {[%emt 0:08:58]} f6 {[%emt 0:06:11]} 12. exf6 {[%emt 0:00:35]} Nxf6 {[%emt 0:00:17] [#] White is slightly better.} 13. Kh1 $146 {[%emt 0:04:33]} ({Predecessor:} 13. Nxc6 bxc6 14. Bxc5 Qxc5+ 15. Kh1 Qb4 16. a3 Qb8 17. Qd4 Qxb2 18. Bd3 Qb6 19. Qe5 {1-0 (40) Sarana,A (2649)-Holt,C (2549) Chess.com INT 2021}) 13... Bb4 {[%emt 0:05:42]} 14. Bd3 {[%emt 0:10:43]} e5 {[%emt 0:09:16]} 15. Nxc6 {[%emt 0:12:20]} bxc6 {[%emt 0:00:12]} 16. fxe5 {[%emt 0:00:06]} Qxe5 {[%emt 0:02:00] [#]} 17. Bd4 $1 {[%emt 0:04:00]} Qh5 {[%emt 0:05:21]} 18. Bxf6 {[%emt 0:04:50] Bd4 is the strong threat.} Bd6 $1 {[%emt 0:12:52][%csl Gd6][%cal Rh5h2]} (18... Rxf6 19. Rxf6 gxf6 20. Nxd5 $1 Qxh2+ 21. Kxh2 $16) 19. g4 {[%emt 0:01:55]} Bxg4 {[%emt 0:00:25] And now ...Bf3+ would win. The board is on fire.} 20. Bd4 $2 {[%emt 0:00:39]} (20. Qg2 $1 $11 Rxf6 21. Rxf6 gxf6 22. Be2) 20... Rf3 $1 $19 {Threatens to win with ...Rg3.} ({Not} 20... Bf3+ 21. Rxf3 $1 Qxf3+ 22. Qg2 $14) 21. Bg1 $2 {[%emt 0:32:51]} (21. Ne4 $19 Bf4 22. Qg2 Bxh2 23. Nf6+ (23. Qxh2 $2 Rh3 $19) 23... gxf6 24. Rxf3 (24. Qxh2 $2 Rh3 $19) 24... Be5+ 25. Rh3 Qxh3+ 26. Qxh3 Bxh3 27. Bxe5 fxe5 28. Kh2) 21... Raf8 {[%emt 0:15:49]} (21... Rg3 $142 22. Rf2 Bf3+ 23. Rg2 Rh3 24. Bxh7+ Qxh7 25. Be3 Rxh2+ 26. Kg1 Bxg2 27. Bh6 Rxh6 28. Qxg2 Rg6 29. Qxg6 Qh2+ 30. Kf1 Rf8+ 31. Qf6 Rxf6+ 32. Ke1 Bg3+ 33. Kd1 Rf1#) 22. Rae1 {[%emt 0:05:34]} Bg3 {[%emt 0:18:14]} 23. Bc5 {[%emt 0:04:26] [#]} Bxe1 $40 {[%emt 0:06:09][%mdl 128] Black attacks with force.} (23... R8f4 $1 $19 {has better winning chances. aiming for ...Rxf1+.} 24. Kg1 (24. Rxf3 $2 Bxf3+ 25. Kg1 Bxh2+ 26. Qxh2 Rg4+ 27. Kf1 Qxh2 $19) 24... Bd7) 24. Rxe1 {[%emt 0:01:59][%mdl 8192] [#]} (24. Qxe1 $17 R8f6 25. Rf2) 24... Rxd3 $1 {[%emt 0:01:11][%mdl 512]} 25. cxd3 {[%emt 0:02:19]} (25. Qxd3 Bf3+) 25... Bf3+ {[%emt 0:00:08]} 26. Kg1 {[%emt 0:00:02]} Qg4+ {[%emt 0:00:25]} 27. Kf2 {[%emt 0:00:08]} Qg2+ {[%emt 0:01:12]} 28. Ke3 {[%emt 0:00:05]} Qg5+ {[%emt 0:00:28][%mdl 64] Skewer, Deflection.  Weighted Error Value: White=1.15/Black=1.01} 0-1

[Event "New York Spring IM-D 2022"]
[Site "New York"]
[Date "2022.04.15"]
[Round "1.2"]
[White "Csonka, Attila Istvan"]
[Black "Yang, Qindong"]
[Result "1/2-1/2"]
[ECO "B53"]
[WhiteElo "2334"]
[BlackElo "2084"]
[Annotator "TA"]
[PlyCount "86"]
[EventDate "2022.04.14"]
[EventType "tourn"]
[EventCountry "USA"]
[SourceTitle "playchess.com"]
[Source "ChessBase"]
[SourceQuality "1"]
[TimeControl "5400+30"]

{[%evp 24,86,8,4,21,25,52,21,11,15,12,16,9,0,26,8,62,30,47,20,37,41,41,27,36,37,39,45,63,9,17,9,11,-4,8,6,5,7,52,0,6,0,0,3,3,1,0,0,0,2,0,0,8,0,0,0,0,0,0,0,0,0,0,0,0]} 1. e4 {[%emt 0:00:05]} c5 {[%emt 0:00:04]} 2. Nf3 {[%emt 0:00:07]} d6 {[%emt 0:00:01]} 3. d4 {[%emt 0:00:08]} cxd4 {[%emt 0:00:05]} 4. Qxd4 {[%emt 0:00:06]} Nc6 {[%emt 0:00:34]} 5. Bb5 {[%emt 0:00:08]} Bd7 {[%emt 0:00:35]} 6. Bxc6 {[%emt 0:00:43]} Bxc6 {[%emt 0:00:17]} 7. Nc3 {[%emt 0:00:07]} Nf6 {[%emt 0:00:58]} 8. Bg5 {[%emt 0:02:03]} e6 {[%emt 0:00:35]} 9. O-O-O {[%emt 0:00:25]} Be7 {[%emt 0:00:10]} 10. Kb1 {[%emt 0:00:12]} O-O {[%emt 0:05:04]} 11. Rhe1 {[%emt 0:04:00]} Qa5 {[%emt 0:02:37]} 12. Qd2 {[%emt 0:03:08]} Qa6 {[%emt 0:11:32]} 13. Nd4 {[%emt 0:02:14]} Rfd8 {[%emt 0:10:57] B53: Sicilian: 2...d6: Lines with Qxd4.} 14. g4 {[%emt 0:04:08] [#]} Rab8 $146 {[%emt 0:16:02]} ({Predecessor:} 14... h6 15. Bxf6 Bxf6 16. f4 Qb6 17. Nf3 Qb4 18. Nd4 Rac8 19. Nd5 Qxd4 20. Ne7+ Kf8 21. Qxd4 Bxd4 22. Nxc6 bxc6 23. Rxd4 {0-1 (85) Chia,E-Halay,T (2232) Kuala Lumpur 2002}) 15. Bxf6 {[%emt 0:04:01]} Bxf6 {[%emt 0:00:40]} 16. g5 {[%emt 0:00:47]} Bxd4 {[%emt 0:03:26]} 17. Qxd4 {[%emt 0:00:06]} b5 {[%emt 0:01:33]} 18. f4 {[%emt 0:01:56]} Qb6 {[%emt 0:06:58]} (18... b4 $5 19. Ne2 Qa5 $11) 19. Ne2 {[%emt 0:03:27]} Qc7 {[%emt 0:11:09]} (19... b4 $11) 20. Qe3 {[%emt 0:09:11] &Bianco is more active.} b4 {[%emt 0:07:12]} 21. Nd4 {[%emt 0:02:58]} Rbc8 {[%emt 0:01:03]} 22. Rd2 {[%emt 0:01:36]} Ba4 {[%emt 0:08:56]} 23. Qd3 {[%emt 0:09:28]} a5 {[%emt 0:03:00]} 24. h4 {[%emt 0:02:41]} Bd7 {[%emt 0:01:15]} 25. h5 {[%emt 0:03:17][%cal Og5g6]} Qc4 $1 {[%emt 0:02:23]} 26. Nb3 {[%emt 0:12:57]} ({Better is} 26. Qg3 $14) 26... Qxd3 $11 {[%emt 0:02:02]} 27. Rxd3 {[%emt 0:01:37]} Ba4 {[%emt 0:01:18]} 28. Nd4 {[%emt 0:06:36]} Kf8 {[%emt 0:00:36]} 29. b3 {[%emt 0:05:13]} Bd7 {[%emt 0:00:13]} 30. e5 {[%emt 0:02:54]} Bc6 {[%emt 0:01:01]} 31. f5 {[%emt 0:03:42]} (31. g6 $14 hxg6 32. hxg6) 31... dxe5 {[%emt 0:00:35] The position is equal.} 32. Rxe5 {[%emt 0:00:18]} exf5 {[%emt 0:00:40] [#] And now ...Be4 would win.} 33. Nxc6 {[%emt 0:01:34]} Rxd3 {[%emt 0:00:16]} 34. cxd3 {[%emt 0:00:04]} Rxc6 {[%emt 0:00:00]} 35. Rxf5 {[%emt 0:00:07][%mdl 4096] Endgame KR-KR} Rc3 {[%emt 0:00:53]} 36. g6 {[%emt 0:03:25]} hxg6 {[%emt 0:00:19]} 37. hxg6 {[%emt 0:00:04]} f6 {[%emt 0:00:28]} 38. Rd5 {[%emt 0:00:07]} Ke7 {[%emt 0:00:18]} 39. Rxa5 {[%emt 0:00:41]} Rxd3 {[%emt 0:00:05]} 40. Kc2 {[%emt 0:00:23]} Rc3+ {[%emt 0:00:23]} 41. Kd2 {[%emt 0:00:06]} Rg3 {[%emt 0:01:27]} 42. Ra7+ {[%emt 0:00:05]} Kf8 {[%emt 0:00:05]} 43. Ra8+ {[%emt 0:01:22]} Ke7 {[%emt 0:04:15] Weighted Error Value: White=0.11 (very precise) /Black=0.08 (flawless)} 1/2-1/2

[Event "New York Spring IM-D 2022"]
[Site "New York"]
[Date "2022.04.15"]
[Round "1.3"]
[White "Espinosa, Pedro"]
[Black "Adewumi, Tanitoluwa"]
[Result "0-1"]
[ECO "E18"]
[WhiteElo "2012"]
[BlackElo "2190"]
[Annotator "TA"]
[PlyCount "126"]
[EventDate "2022.04.14"]
[EventType "tourn"]
[EventCountry "USA"]
[SourceTitle "playchess.com"]
[Source "ChessBase"]
[SourceQuality "1"]
[TimeControl "5400+30"]

{[%evp 18,126,1,-1,0,0,2,0,36,21,41,15,22,20,30,21,16,23,117,108,115,112,108,113,172,36,216,206,230,245,240,232,298,312,366,361,332,256,248,269,291,282,386,375,368,306,280,255,252,244,235,252,244,246,239,227,227,214,204,125,227,70,70,0,226,224,237,222,222,222,212,20,20,0,20,0,59,0,9,9,12,-8,-8,-8,-8,-14,-14,-67,-62,-63,-64,-439,-432,-804,-683,-935,-744,-905,-822,-29984,-29985,-29986,-29987,-29989,-29990,-29990,-29991,-29989,-29990,-29990,-369]} 1. d4 {[%emt 0:00:02]} Nf6 {[%emt 0:02:20]} 2. c4 {[%emt 0:00:10]} e6 {[%emt 0:00:05]} 3. Nf3 {[%emt 0:00:09]} b6 {[%emt 0:00:12]} 4. g3 {[%emt 0:00:49]} Bb7 {[%emt 0:00:01]} 5. Bg2 {[%emt 0:00:46]} Be7 {[%emt 0:00:01]} 6. O-O {[%emt 0:01:32]} O-O {[%emt 0:00:02]} 7. Nc3 {[%emt 0:01:09]} Ne4 {[%emt 0:00:01]} 8. Nxe4 {[%emt 0:03:58]} Bxe4 {[%emt 0:00:04]} 9. Ne1 {[%emt 0:00:39]} Bxg2 {[%emt 0:00:26]} 10. Nxg2 {[%emt 0:01:11]} Bf6 {[%emt 0:01:02] E18: Queen's Indian: Old Main Line (4 g3 Bb7 5 Bg2 Be7 6 0-0 0-0 7 Nc3).} 11. e4 {[%emt 0:03:02]} d6 {[%emt 0:02:52]} 12. f4 {[%emt 0:13:14] [#]} Nc6 $146 {[%emt 0:09:43] The position is equal.} ({Predecessor:} 12... c5 13. e5 dxe5 14. fxe5 Bg5 15. d5 Bxc1 16. Rxc1 Nd7 17. Qe2 Qg5 18. Rfe1 Rfe8 19. Rcd1 {½-½ (19) Horvath,M (2336)-Ilyasov,A (2391) ICCF email 2017}) 13. Be3 {[%emt 0:06:15]} Rb8 {[%emt 0:13:59]} 14. d5 {[%emt 0:04:50]} Na5 {[%emt 0:01:12]} 15. Qc2 {[%emt 0:03:46]} b5 {[%emt 0:05:59]} 16. e5 {[%emt 0:08:25]} dxe5 {[%emt 0:00:32]} 17. Bxa7 {[%emt 0:01:12]} Nxc4 {[%emt 0:08:53]} (17... Rb7 $11 18. Bc5 Be7 19. Bxe7 Qxe7) 18. Bxb8 $16 {[%emt 0:02:55]} Qxb8 {[%emt 0:01:08]} 19. dxe6 {[%emt 0:01:59]} Qb6+ {[%emt 0:00:31]} 20. Kh1 {[%emt 0:06:28]} Qxe6 {[%emt 0:02:03]} (20... fxe6 $16 {was worth a try.} 21. b3 exf4) 21. b3 {[%emt 0:03:04]} ({White has to play} 21. Rae1 $1 $18) 21... Nd6 $2 {[%emt 0:06:50]} (21... exf4 $1 $14 22. bxc4 Bxa1) 22. Qxc7 $18 {[%emt 0:01:44]} e4 {[%emt 0:43:34]} 23. Rad1 {[%emt 0:02:19][%cal Ba1d1,Bd1d7,Bd7e7][%mdl 32]} Nf5 {[%emt 0:00:00]} 24. Qd7 {[%emt 0:08:02]} Bc3 {[%emt 0:00:00]} 25. g4 $1 {[%emt 0:04:23]} (25. Qxb5 e3 $16) 25... Qxd7 {[%emt 0:00:00]} 26. Rxd7 {[%emt 0:00:13]} Nd4 {[%emt 0:00:00]} 27. Re7 {[%emt 0:01:57]} Ne6 {[%emt 0:00:00]} 28. f5 {[%emt 0:01:28]} Nc5 {[%emt 0:00:00]} 29. Rc7 {[%emt 0:02:55]} Bd4 {[%emt 0:00:00]} 30. Nf4 {[%emt 0:16:54]} g5 {[%emt 0:00:00]} 31. fxg6 {[%emt 0:00:00]} fxg6 {[%emt 0:00:00]} 32. Kg2 {[%emt 0:00:00] And now Ne2 would win.} Ra8 {[%emt 0:00:00]} 33. a4 {[%emt 0:00:00]} bxa4 {[%emt 0:00:00]} 34. bxa4 {[%emt 0:00:00]} Nxa4 {[%emt 0:00:00]} 35. Rc4 {[%emt 0:00:00]} Bg7 {[%emt 0:00:27]} 36. Rxe4 {[%emt 0:00:00]} Nc5 {[%emt 0:00:19]} 37. Re7 {[%emt 0:00:00]} Bf8 {[%emt 0:01:09]} 38. Rc7 {[%emt 0:00:00]} Rd8 {[%emt 0:00:39]} (38... Bd6 $16 {was necessary.} 39. Rc6 Ra2+ 40. Kh1 Bxf4) 39. Rc1 $2 {[%emt 0:00:58]} (39. h3 $18) 39... Rd4 $1 $14 {[%emt 0:00:58]} 40. Rf1 $2 {[%emt 0:01:54]} ({Don't play} 40. R1xc5 Bxc5 41. Ne6 Rd2+ 42. Kf3 Bg1 $11) (40. Ne2 $14 Rxg4+ 41. Ng3 (41. Kf3 Rh4 $16)) 40... Rd8 $1 $18 {[%emt 0:01:24]} 41. h3 {[%emt 0:00:50]} Rd2+ {[%emt 0:01:45]} 42. Kg1 {[%emt 0:00:58] Black must now prevent Rc8.} Bd6 {[%emt 0:00:54] [#]} 43. Rc8+ {[%emt 0:00:15]} Kg7 {[%emt 0:00:02]} 44. Kh1 $2 {[%emt 0:00:51]} (44. Rf2 $18 Rd4 {[#]} 45. Rxc5 $1 {[%mdl 512]} Bxf4 46. Kg2) 44... Ne4 $1 $11 {[%emt 0:00:38] Threatens to win with ...Ng3+.} 45. Ne6+ {[%emt 0:00:41]} Kh6 {[%emt 0:00:02]} 46. Rf3 {[%emt 0:00:56]} Re2 {[%emt 0:03:04]} (46... Ng3+ $11 47. Kg1 Ne2+ 48. Kh1 (48. Kf1 Ng3+ 49. Kg1 Ne2+ 50. Kh1 Ng3+ 51. Kg1 $11) 48... Ng3+ 49. Kg1 Ne2+ 50. Kh1 (50. Kf1 Ng3+ 51. Kg1 $11) 50... Ng3+) 47. Nd4 {[%emt 0:00:34]} ({White should try} 47. Rh8 $14) 47... Rh2+ {[%emt 0:00:27]} 48. Kg1 {[%emt 0:00:03] aiming for Re3.} Ng5 {[%emt 0:00:23][%csl LRf3,LRh3]} 49. Rc6 {[%emt 0:00:58]} Nxf3+ {[%emt 0:00:27]} 50. Nxf3 {[%emt 0:00:02]} Rxh3 {[%emt 0:00:14][%mdl 4096] Endgame KRB-KRN} 51. g5+ {[%emt 0:00:20]} Kh5 {[%emt 0:00:21]} 52. Kg2 {[%emt 0:00:02]} (52. Rxd6 $11 Rxf3 53. Rd7) 52... Rg3+ $15 {[%emt 0:00:47]} 53. Kf2 {[%emt 0:00:00]} Bf4 {[%emt 0:00:15]} 54. Rf6 $2 {[%emt 0:01:47][%mdl 8192]} ({White should play} 54. Ra6 $15) 54... Kg4 $19 {[%emt 0:01:08]} 55. Nh2+ {[%emt 0:00:23]} (55. Ne1 $142) 55... Kxg5 {[%emt 0:00:09]} 56. Rf7 {[%emt 0:00:03]} Ra3 {[%emt 0:00:40]} 57. Nf3+ {[%emt 0:00:38]} Kg4 {[%emt 0:00:11] ( -> ...Ra2+)} 58. Rxh7 {[%emt 0:01:01]} Ra2+ {[%emt 0:00:10] Black mates.} 59. Ke1 {[%emt 0:00:18]} Kxf3 {[%emt 0:00:12][%cal Ra2a1]} 60. Kd1 {[%emt 0:00:04]} Rd2+ {[%emt 0:00:07]} 61. Ke1 {[%emt 0:00:05]} Rd8 {[%emt 0:00:32]} 62. Rf7 {[%emt 0:00:05]} Rc8 {[%emt 0:00:11][%cal Rc8c1]} 63. Rd7 {[%emt 0:00:11]} Rc1+ $2 {[%emt 0:00:06] Never resign too early!  Weighted Error Value: White=0.68/Black=0.23 (precise)} (63... g5 {mates} 64. Rd3+ Be3 65. Rd6 g4 66. Rd5 g3 67. Rf5+ Bf4 68. Rxf4+ Kxf4 69. Kd2 g2 70. Ke2 g1=Q 71. Kd2 Qe3+ 72. Kd1 Rc1#) 0-1

[Event "New York Spring IM-D 2022"]
[Site "New York"]
[Date "2022.04.15"]
[Round "2.1"]
[White "Wang, Eigen"]
[Black "Jacobson, Aaron"]
[Result "1-0"]
[ECO "A61"]
[WhiteElo "2242"]
[BlackElo "2263"]
[Annotator "TA"]
[PlyCount "73"]
[EventDate "2022.04.14"]
[EventType "tourn"]
[EventCountry "USA"]
[SourceTitle "playchess.com"]
[Source "ChessBase"]
[SourceQuality "1"]
[TimeControl "5400+30"]

{[%evp 23,72,0,0,0,0,0,0,0,0,0,0,0,0,0,21,43,35,54,85,86,82,89,85,89,86,85,198,193,314,323,283,236,820,358,5397,491,558,560,5127,4878,4782,1640,29990,29991,29995,29996,29996,29997,29998,29999,29999]} 1. d4 {[%emt 1:31:00]} Nf6 {[%emt 0:04:39]} 2. c4 {[%emt 0:00:00]} e6 {[%emt 0:00:09]} 3. Nf3 {[%emt 0:00:00]} c5 {[%emt 0:00:40]} 4. d5 {[%emt 0:00:00]} d6 {[%emt 0:00:32]} 5. Nc3 {[%emt 0:00:00]} exd5 {[%emt 0:00:05]} 6. cxd5 {[%emt 0:00:00]} g6 {[%emt 0:00:07]} 7. Bf4 {[%emt 0:00:00]} Bg7 {[%emt 0:00:13]} 8. Qa4+ {[%emt 0:00:00]} Bd7 {[%emt 0:00:07]} 9. Qb3 {[%emt 0:00:00]} b5 {[%emt 0:00:52]} 10. Nxb5 {[%emt 0:00:00]} Bxb5 {[%emt 0:08:46]} 11. Qxb5+ {[%emt 0:00:00]} Nbd7 {[%emt 0:00:06]} 12. Bxd6 {[%emt 0:00:00]} Ne4 {[%emt 0:02:40]} 13. Be5 {[%emt 0:00:00] A61: Modern Benoni: Nf3 without early e4.} O-O {[%emt 0:02:21]} 14. Bxg7 {[%emt 0:00:00]} Kxg7 {[%emt 0:00:05]} 15. Qa4 {[%emt 0:00:00] The position is equal.} Rb8 $1 {[%emt 0:16:55][%cal Ob8b2]} 16. Qxe4 {[%emt 0:00:00]} Qa5+ $1 {[%emt 0:00:35]} 17. Nd2 $1 {[%emt 0:00:00]} Rxb2 {[%emt 0:00:34][%csl Gb2][%cal Ra5d2]} 18. Rd1 {[%emt 0:00:00]} Rfb8 {[%emt 0:13:20][%cal Ob2d2]} 19. Qf4 {[%emt 0:00:00] aiming for h4.} Nf6 {[%emt 0:42:19] ...R8b4 is the strong threat.} 20. e4 {[%emt 0:00:00]} Re8 {[%emt 0:00:46]} 21. Bd3 {[%emt 0:00:00] Strongly threatening 0-0. White now steadily converts the win.} Nxd5 {[%emt 0:00:42]} 22. Qg5 {[%emt 0:00:00]} Nc3 {[%emt 0:04:23] [#]} 23. O-O $146 {[%emt 0:00:00] Threatens to win with Nc4.} ({Predecessor:} 23. Nc4 Nxe4+ 24. Nxa5 Nxg5+ 25. Kf1 Ne4 26. Nc4 Rxf2+ 27. Kg1 Rxa2 28. Re1 Nf6 29. Rxe8 Nxe8 {1-0 (65) Ivanchuk,V (2480)-Norwood,D (2405) Arnhem 1987}) 23... Nxd1 {[%emt 0:00:06]} 24. Rxd1 {[%emt 0:00:00] Black must now prevent Nc4.} Rxa2 {[%emt 0:00:54]} (24... Qa4 $16 {was called for.} 25. Nb3 Qxa2 26. Nxc5 Rxf2) 25. Nc4 $1 $18 {[%emt 0:00:00]} Qc3 {[%emt 0:00:24]} (25... Qd8 $142 26. Qe3 Qd4) 26. Nd6 {[%emt 0:00:54]} Re5 {[%emt 0:01:10]} 27. Qf4 {[%emt 0:02:49] The board is on fire.} f6 {[%emt 0:00:00]} (27... Re7) 28. Bf1 {[%emt 0:04:02]} (28. Qg4 $142 {White threatens Qd7+ and mate.} Re7 29. Nf5+ Kf8 30. Nxe7 Kxe7 31. e5 (31. Qc8 Qxd3 32. Qxc5+ Kf7 $11) 31... Qxe5 32. Qh3) 28... Re7 {[%emt 0:00:27] [#]} (28... Ra1 29. Rxa1 (29. Nb5 Qb2 $16) 29... Qxa1) 29. Qg4 {[%emt 0:01:14]} ({Weaker is} 29. Bc4 Ra1 30. Rxa1 Qxa1+ 31. Bf1 Qe5 32. Qxe5 fxe5 $11) (29. Ne8+ $142 $1 {[%mdl 512]} Kf7 {[#]} 30. Bc4+ $1 {[%mdl 512]} Qxc4 31. Nd6+ Kg7 32. Nxc4) 29... h5 {[%emt 0:00:15]} 30. Qc8 {[%emt 0:01:16]} Qc2 {[%emt 0:00:47] [#]} 31. Qd8 $1 {[%emt 0:01:11][%mdl 512]} Qxf2+ {[%emt 0:00:30]} 32. Kh1 {[%emt 0:00:06]} Re5 {[%emt 0:00:30]} 33. Qc7+ {[%emt 0:02:24] White mates.} Kg8 {[%emt 0:00:29]} 34. Bc4+ {[%emt 0:00:37]} Kh8 {[%emt 0:00:02]} 35. Qd8+ {[%emt 0:00:18]} Kh7 {[%emt 0:00:08]} 36. Qg8+ {[%emt 0:00:09]} Kh6 {[%emt 0:00:02]} 37. Nf7# {[%emt 0:00:14] Weighted Error Value: White=0.45/Black=0.41} 1-0

[Event "New York Spring IM-D 2022"]
[Site "New York"]
[Date "2022.04.15"]
[Round "2.3"]
[White "Adewumi, Tanitoluwa"]
[Black "Cervantes Landeiro, Thalia"]
[Result "1-0"]
[ECO "C54"]
[WhiteElo "2190"]
[BlackElo "2206"]
[Annotator "TA"]
[PlyCount "63"]
[EventDate "2022.04.14"]
[EventType "tourn"]
[EventCountry "USA"]
[SourceTitle "playchess.com"]
[Source "ChessBase"]
[SourceQuality "1"]
[TimeControl "5400+30"]

{[%evp 14,63,22,16,10,18,29,6,15,22,7,9,18,24,43,41,48,39,72,50,45,43,60,64,63,50,102,105,191,184,216,191,236,244,217,175,622,622,610,596,691,677,675,695,675,673,773,752,896,882,911,895]} 1. e4 {[%emt 0:00:02]} e5 {[%emt 0:00:07]} 2. Nf3 {[%emt 0:00:06]} Nc6 {[%emt 0:00:06]} 3. Bc4 {[%emt 0:00:15]} Bc5 {[%emt 0:00:13]} 4. O-O {[%emt 0:00:10]} Nf6 {[%emt 0:00:47]} 5. d3 {[%emt 0:00:01]} O-O {[%emt 0:00:43]} 6. c3 {[%emt 0:00:16][%cal Bc2c3,Bc3d4,Bd4d5][%mdl 32]} d6 {[%emt 0:01:23]} 7. Bg5 {[%emt 0:00:38][%cal Bc1g5,Bg5h4,Bh4g3][%mdl 32]} h6 {[%emt 0:01:14]} 8. Bh4 {[%emt 1:33:02]} g5 {[%emt 0:01:49] C54: Giuoco Piano: 4 c3 Nf6, main lines with 5 d4 and 5 d3.} 9. Bg3 {[%emt 0:00:00]} a5 {[%emt 0:01:22] [#] Prevents b4.} 10. d4 $146 {[%emt 0:00:00]} ({Predecessor:} 10. Re1 Re8 11. Nbd2 Ba7 12. Nf1 Be6 13. Bb5 Bd7 14. Ne3 Ne7 15. a4 c6 16. Bc4 {½-½ (42) Aronian,L (2781)-Radjabov,T (2765) chess24.com INT 2021}) 10... exd4 {[%emt 0:04:50] The position is equal.} 11. cxd4 {[%emt 0:00:00]} Bb6 {[%emt 0:01:50]} 12. d5 {[%emt 0:00:00]} Ne7 {[%emt 0:01:48]} 13. Nc3 {[%emt 0:00:00]} Bg4 {[%emt 0:11:50][%cal Of6e4]} 14. h3 {[%emt 0:00:00]} Bh5 {[%emt 0:03:47]} 15. Qd3 {[%emt 0:00:00]} Bg6 {[%emt 0:06:38]} 16. Rae1 {[%emt 0:00:00]} Bh7 {[%emt 0:05:57]} 17. Qd2 {[%emt 0:00:00]} Nh5 {[%emt 0:08:03]} 18. Bh2 {[%emt 0:00:00]} Ng6 {[%emt 0:04:01]} 19. e5 {[%emt 0:00:00] &Bianco is more active.} dxe5 {[%emt 0:03:06]} ({Black should play} 19... Nhf4 $14) 20. Nxe5 $16 {[%emt 0:00:00]} Bc5 {[%emt 0:01:17] [#]} (20... Nxe5 $16 21. Bxe5 Re8) 21. Ng4 $1 $18 {[%emt 0:00:00] And now Ne4 would win.} Kg7 {[%emt 0:03:24]} 22. Ne4 {[%emt 0:00:00]} Bb4 {[%emt 0:01:18]} 23. Qd4+ {[%emt 0:00:00]} f6 {[%emt 0:00:12]} 24. Re3 {[%emt 0:00:00] Hoping for d6.} Nhf4 $2 {[%emt 0:04:45]} (24... Bd6 25. Nxd6 cxd6) 25. Nexf6 {[%emt 0:00:00] White is clearly winning.} Rxf6 {[%emt 0:13:40] [#]} 26. Re8 $1 {[%emt 0:00:00][%mdl 512]} c5 {[%emt 0:01:48]} (26... Qd6 27. Rxa8) 27. Qxf6+ {[%emt 0:00:00]} Qxf6 {[%emt 0:18:02]} 28. Nxf6 {[%emt 0:00:00][%cal Bg4f6,Bf6e8,Be8d6][%mdl 32]} Rxe8 {[%emt 0:00:00]} 29. Nxe8+ {[%emt 0:00:00]} Kf7 {[%emt 0:00:00]} 30. Nd6+ {[%emt 0:00:00]} Kf6 {[%emt 0:00:00]} 31. a3 {[%emt 0:00:00]} Ne5 {[%emt 0:00:00]} 32. Bxf4 {[%emt 0:00:00] Weighted Error Value: White=0.04 (flawless) /Black=0.61} 1-0